bitfinex/quotes_BTCUSD_20260221
["timestamp","ask_amount","ask_price","bid_price","bid_amount"]
[1771684031612,0.073011,68483.0,68477.0,0.17528]
[1771684031947,0.07301187,68483.0,68477.0,0.17528]
[1771684032154,0.07301187,68483.0,68478.0,0.001]
[1771684032434,0.07301,68484.0,68477.0,0.17528]
[1771684032635,0.07300596,68488.0,68477.0,0.17528]
[1771684032832,0.07300785,68486.0,68477.0,0.17628]
[1771684033687,0.07300923,68485.0,68477.0,0.17628]
[1771684033887,0.29217424,68490.0,68468.0,0.00022]
[1771684033888,0.02499999,68488.0,68468.0,0.00022]
[1771684034091,0.29217745,68490.0,68471.0,0.07302361]
[1771684034291,0.07300975,68484.0,68472.0,0.375934]
[1771684034530,0.07301288,68482.0,68472.0,0.375934]
[1771684034731,0.07301416,68480.0,68472.0,0.375934]
[1771684034947,0.07301416,68480.0,68470.0,0.00376846]
[1771684035189,0.07301288,68482.0,68470.0,0.00376846]
[1771684035388,0.07301333,68481.0,68471.0,0.07302334]
[1771684035895,0.07301211,68482.0,68472.0,0.07302253]
[1771684036032,0.00016,68490.0,68477.0,0.00022]
[1771684036436,0.29217769,68490.0,68477.0,0.00022]
[1771684036684,0.07300858,68486.0,68477.0,0.00022]
[1771684038164,0.07300872,68485.0,68477.0,0.00022]
[1771684038861,0.073006,68488.0,68477.0,0.00022]
[1771684038862,0.07300789,68486.0,68477.0,0.00022]
[1771684039086,0.07300789,68486.0,68477.0,0.00045823]
[1771684039453,0.07300789,68486.0,68477.0,0.07347525]
[1771684039977,0.29217612,68490.0,68470.0,0.00376846]
[1771684039978,0.07302103,68474.0,68470.0,0.00376846]
[1771684040157,0.47154555,68473.0,68470.0,0.00376846]
[1771684040366,0.4235239,68479.0,68470.0,0.00376846]
[1771684040561,0.07301831,68476.0,68470.0,0.00376846]
[1771684041106,0.07301831,68476.0,68470.0,0.00476846]
[1771684041510,0.07302361,68471.0,68470.0,0.00376846]
[1771684041869,0.71560042,68476.0,68470.0,0.00376846]
[1771684042314,0.07302347,68472.0,68470.0,0.00376846]
[1771684043288,0.07302361,68471.0,68470.0,0.00376846]
[1771684043640,0.29206033,68480.0,68463.0,0.00022]
[1771684043641,0.02499999,68478.0,68463.0,0.00022]
[1771684043819,0.07302625,68469.0,68463.0,0.00022]
[1771684045062,0.02728614,68469.0,68463.0,0.00022]
[1771684045211,0.2924567,68478.0,68463.0,0.00022]
[1771684045212,0.0003901,68478.0,68463.0,0.00022]
[1771684045415,0.0003901,68478.0,68464.0,0.07303108]
[1771684045646,0.0003901,68478.0,68463.0,0.00022]
[1771684045849,0.07302113,68474.0,68465.0,0.07302913]
[1771684046266,0.0003901,68478.0,68467.0,0.07302764]
[1771684046426,0.073407,68478.0,68469.0,0.07302477]
[1771684046658,0.0003901,68478.0,68470.0,0.07302378]
[1771684047194,0.00016,68480.0,68463.0,0.20140115]
[1771684047368,0.07301123,68483.0,68474.0,0.07301966]
[1771684047541,0.07301123,68483.0,68475.0,0.07301918]
[1771684048241,0.07301123,68483.0,68474.0,0.07301966]
[1771684049055,0.073012,68482.0,68474.0,0.07233407]
[1771684049638,0.07301123,68483.0,68474.0,0.07233407]
[1771684050078,0.29202804,68487.0,68470.0,0.02315215]
[1771684050079,0.07300684,68487.0,68470.0,0.02315215]
[1771684050279,0.02293215,68500.0,68484.0,0.07300876]
[1771684050280,0.0002,68486.0,68484.0,0.07300876]
[1771684050457,0.07300103,68493.0,68484.0,0.07300876]
[1771684050658,0.29198606,68497.0,68482.0,0.07301176]
[1771684050888,0.39852391,68499.0,68485.0,0.0730077]
[1771684051060,0.39852391,68499.0,68480.0,0.00016]
[1771684051061,0.07300088,68493.0,68484.0,0.07300969]
[1771684051263,0.07299766,68496.0,68480.0,0.02293215]
[1771684051463,0.39852391,68499.0,68480.0,0.02293215]
[1771684051464,0.07299921,68494.0,68485.0,0.07300762]
[1771684052106,0.07299921,68494.0,68485.0,0.06683731]
[1771684053250,0.39852391,68494.0,68482.0,0.07301098]
[1771684053610,0.07300309,68491.0,68482.0,0.07301098]
[1771684053752,0.07300309,68491.0,68472.0,0.05729893]
[1771684053754,0.02499999,68487.0,68469.0,0.07302552]
[1771684053951,0.39852391,68482.0,68460.0,0.00316]
[1771684054190,0.4716482,68487.0,68478.0,0.07301512]
[1771684054391,0.07300848,68486.0,68477.0,0.07301698]
[1771684054598,0.4716482,68487.0,68477.0,0.07301698]
[1771684054750,0.07301368,68481.0,68472.0,0.07302169]
[1771684055192,0.47153759,68481.0,68472.0,0.07302169]
[1771684055700,0.39852391,68481.0,68474.0,0.07301957]
[1771684055910,0.09801111,68483.0,68474.0,0.07301957]
[1771684055911,0.02499999,68483.0,68474.0,0.07301957]
[1771684056082,0.02499999,68483.0,68475.0,0.07301935]
[1771684056489,0.07300926,68485.0,68476.0,0.07301811]
[1771684056686,0.07301021,68484.0,68476.0,0.07301811]
[1771684056866,0.39852391,68486.0,68473.0,0.29208341]
[1771684057068,0.21870088,68485.0,68477.0,0.07301719]
[1771684057270,0.07300976,68484.0,68476.0,0.07301795]
[1771684057484,0.2187005,68485.0,68477.0,0.07301711]
[1771684057885,0.2187005,68485.0,68471.0,0.1754]
[1771684057886,0.07300999,68484.0,68471.0,0.1754]
[1771684058108,0.47611876,68484.0,68475.0,0.07301842]
[1771684058273,0.47611876,68484.0,68474.0,0.07301842]
[1771684058703,0.40310877,68484.0,68476.0,0.0730175]
[1771684059772,0.47611866,68484.0,68476.0,0.0730175]
[1771684059972,0.47611866,68484.0,68474.0,0.07301842]
[1771684060742,0.14580316,68483.0,68474.0,0.07301842]
[1771684061192,0.14580316,68483.0,68477.0,0.07301696]
[1771684062466,0.14580316,68483.0,68472.0,0.07302254]
[1771684062675,0.00031699,68487.0,68479.0,0.0730142]
[1771684062881,0.14615606,68487.0,68479.0,0.0730142]
[1771684063078,0.40310877,68486.0,68472.0,0.07302254]
[1771684063279,0.62195735,68485.0,68476.0,0.0730174]
[1771684063478,0.40310877,68483.0,68474.0,0.07301993]
[1771684063691,0.40310877,68481.0,68474.0,0.07301993]
[1771684064620,0.40310877,68481.0,68475.0,0.0730191]
[1771684064780,0.47612198,68481.0,68477.0,0.00022]
[1771684064990,0.50112185,68481.0,68473.0,0.07302121]
[1771684065795,0.42810876,68481.0,68472.0,0.07302232]
[1771684066209,0.5011219,68481.0,68473.0,0.07302144]
[1771684066401,0.40310877,68479.0,68472.0,0.07302231]
[1771684066598,0.40310877,68479.0,68473.0,0.07302142]
[1771684067219,0.40310877,68479.0,68472.0,0.07302217]
[1771684067848,0.40310877,68479.0,68472.0,0.07302211]
[1771684068077,0.40310877,68479.0,68473.0,0.07302122]
[1771684069839,0.40310877,68479.0,68473.0,0.07287749]
[1771684070044,0.42810876,68479.0,68473.0,0.07287749]
[1771684070729,0.40310877,68477.0,68472.0,0.07302217]
[1771684070925,0.29203621,68485.0,68466.0,0.21776298]
[1771684070926,0.40310877,68474.0,68466.0,0.21776298]
[1771684071126,0.40310877,68474.0,68467.0,0.07302788]
[1771684071333,0.40310877,68474.0,68466.0,0.21776298]
[1771684071535,0.40310877,68474.0,68466.0,0.21798298]
[1771684072141,0.40310877,68474.0,68467.0,0.07302788]
[1771684072531,0.40310877,68474.0,68462.0,0.1754]
[1771684072532,0.02499999,68475.0,68462.0,0.07303232]
[1771684072533,0.07302208,68473.0,68462.0,0.07303232]
[1771684072711,0.40310877,68470.0,68462.0,0.07303232]
[1771684072911,0.40310877,68468.0,68462.0,0.07303232]
[1771684073314,0.40310877,68468.0,68463.0,0.0730318]
[1771684073694,0.40310877,68468.0,68462.0,0.07303117]
[1771684073895,0.40310877,68468.0,68463.0,0.0730315]
[1771684074101,0.02499999,68469.0,68459.0,0.00022]
[1771684074102,0.40310877,68469.0,68459.0,0.00022]
[1771684074279,0.00016,68470.0,68450.0,0.00316]
[1771684074281,0.40310877,68464.0,68450.0,0.00316]
[1771684074490,0.40310877,68464.0,68456.0,0.07303901]
[1771684074692,0.02294277,68470.0,68448.0,0.1754]
[1771684074693,0.02499999,68456.0,68448.0,0.07304726]
[1771684075033,0.02278277,68466.0,68440.0,0.00316]
[1771684075034,0.02278277,68466.0,68451.0,0.29217953]
[1771684075035,0.00016,68460.0,68451.0,0.29217953]
[1771684075330,0.00016,68460.0,68453.0,0.07304176]
[1771684075534,0.0002769,68460.0,68456.0,0.07303934]
[1771684075711,0.40310877,68459.0,68456.0,0.07303934]
[1771684075878,0.0002769,68460.0,68456.0,0.07303934]
[1771684076083,0.40338567,68460.0,68451.0,0.29217953]
[1771684076345,0.42838566,68460.0,68451.0,0.29217953]
[1771684076538,0.42838566,68460.0,68456.0,0.07303904]
[1771684077438,0.02499999,68459.0,68452.0,0.07304291]
[1771684077688,0.02499999,68457.0,68453.0,0.07304278]
[1771684077823,0.40310877,68457.0,68442.0,0.1754]
[1771684078010,0.02492093,68454.0,68448.0,0.29218998]
[1771684078210,0.02492093,68452.0,68448.0,0.29218998]
[1771684078438,0.4280297,68452.0,68449.0,0.07304708]
[1771684078647,0.02492093,68452.0,68451.0,0.07304424]
[1771684078903,0.40310877,68456.0,68452.0,0.07304355]
[1771684079060,0.40310877,68455.0,68452.0,0.07304355]
[1771684079254,0.02492093,68454.0,68452.0,0.07304355]
[1771684079470,0.40310877,68454.0,68450.0,0.0730458]
[1771684079690,0.02492093,68453.0,68452.0,0.07304388]
[1771684079852,0.4280297,68453.0,68450.0,0.0730458]
[1771684080247,0.40338567,68460.0,68453.0,0.07304272]
[1771684080546,0.0002769,68460.0,68454.0,0.07304175]
[1771684080745,0.0002769,68460.0,68449.0,0.00022]
[1771684080746,0.0002769,68460.0,68458.0,0.07303649]
[1771684080978,0.0002769,68460.0,68457.0,0.07303649]
[1771684081180,0.0002769,68460.0,68450.0,0.02316335]
[1771684081181,0.40310877,68459.0,68453.0,0.07304281]
[1771684081359,0.40310877,68457.0,68452.0,0.07304345]
[1771684081570,0.40310877,68455.0,68449.0,0.07326687]
[1771684081912,0.42794291,68453.0,68439.0,0.29262406]
[1771684082116,0.40310877,68453.0,68448.0,0.07304787]
[1771684082411,0.40310877,68453.0,68439.0,0.0003935]
[1771684082412,0.42794291,68453.0,68441.0,0.29222059]
[1771684082561,0.02483414,68452.0,68448.0,0.07304809]
[1771684082754,0.02483414,68452.0,68439.0,0.0003935]
[1771684082955,0.02483414,68452.0,68451.0,0.07304495]
[1771684083381,0.02483414,68456.0,68452.0,0.04773253]
[1771684083580,0.02483414,68454.0,68452.0,0.04773253]
[1771684083796,0.02483414,68454.0,68451.0,0.07304474]
[1771684084172,0.40310877,68468.0,68460.0,0.06961721]
[1771684084377,0.02483414,68467.0,68462.0,0.07303239]
[1771684084805,0.02483414,68467.0,68462.0,0.06329416]
[1771684085007,0.02294277,68470.0,68458.0,0.29214774]
[1771684085182,0.02294277,68470.0,68450.0,0.02294277]
[1771684085183,0.00055034,68470.0,68450.0,0.02294277]
[1771684085395,0.17544,68473.0,68466.0,0.07302863]
[1771684085626,0.17544,68473.0,68461.0,0.02316335]
[1771684085977,0.17544,68473.0,68466.0,0.07302882]
[1771684086178,0.17544,68473.0,68460.0,0.00016]
[1771684086497,0.17544,68473.0,68467.0,0.07302704]
[1771684086902,0.02483414,68477.0,68467.0,0.07302704]
[1771684087108,0.02483414,68477.0,68468.0,0.07302613]
[1771684087619,0.40330877,68479.0,68468.0,0.37546465]
[1771684087620,0.0002,68479.0,68468.0,0.37546465]
[1771684087837,0.0002,68479.0,68466.0,0.29211337]
[1771684087838,0.0002,68479.0,68471.0,0.07302267]
[1771684088053,0.0002,68479.0,68469.0,0.02294589]
[1771684088054,0.40976866,68479.0,68469.0,0.02294589]
[1771684088186,0.48278407,68479.0,68469.0,0.07302556]
[1771684088393,0.43238111,68477.0,68470.0,0.07302455]
[1771684088575,0.43238111,68477.0,68468.0,0.07302627]
[1771684088576,0.0002,68479.0,68473.0,0.07302064]
[1771684088972,0.0002,68479.0,68473.0,0.07302119]
[1771684089328,0.0002,68479.0,68470.0,0.31504035]
[1771684089503,0.0002,68479.0,68470.0,0.07302361]
[1771684089686,0.07300767,68486.0,68474.0,0.07301949]
[1771684090030,0.00011703,68486.0,68477.0,0.07301629]
[1771684090174,0.00011703,68486.0,68476.0,0.073018]
[1771684090386,0.21872429,68486.0,68475.0,0.07301913]
[1771684090580,0.07312541,68486.0,68475.0,0.07301913]
[1771684090777,0.07312541,68486.0,68475.0,0.07301924]
[1771684091033,0.00011703,68486.0,68475.0,0.07301924]
[1771684091343,0.07312485,68486.0,68475.0,0.07301924]
[1771684091847,0.00011703,68486.0,68476.0,0.07301817]
[1771684092047,0.0002,68479.0,68475.0,0.09684504]
[1771684092288,0.0002,68479.0,68476.0,0.07301827]
[1771684093777,0.0002,68479.0,68477.0,0.07301713]
[1771684093932,0.0002,68479.0,68476.0,0.07301819]
[1771684095136,0.02340427,68486.0,68476.0,0.07301819]
[1771684095137,0.00011703,68486.0,68476.0,0.02382628]
[1771684095365,0.00011703,68486.0,68481.0,0.07301265]
[1771684095570,0.00011703,68486.0,68477.0,0.07301655]
[1771684095769,0.00011703,68486.0,68479.0,0.07301437]
[1771684096182,0.00011703,68486.0,68480.0,0.0730133]
[1771684096386,0.00011703,68486.0,68480.0,0.0730132]
[1771684097526,0.00011703,68486.0,68481.0,0.07301295]
[1771684097707,0.00011703,68486.0,68485.0,0.07300868]
[1771684097910,0.00011703,68486.0,68478.0,0.02382628]
[1771684098110,0.00011703,68486.0,68479.0,0.07301508]
[1771684098344,0.00011703,68486.0,68480.0,0.29205529]
[1771684098549,0.00011703,68486.0,68482.0,0.07301099]
[1771684098709,0.00011703,68486.0,68481.0,0.0730127]
[1771684099045,0.00011703,68486.0,68483.0,0.07301045]
[1771684099241,0.00011703,68486.0,68483.0,0.06337305]
[1771684099447,0.00011703,68486.0,68471.0,0.29209298]
[1771684099448,0.02328724,68497.0,68481.0,0.40678602]
[1771684099677,0.02328724,68497.0,68480.0,0.00016]
[1771684099791,0.07300564,68488.0,68480.0,0.00016]
[1771684099998,0.02328724,68487.0,68480.0,0.00016]
[1771684100197,0.07300784,68486.0,68480.0,0.00016]
[1771684100421,0.02328724,68486.0,68473.0,0.07302142]
[1771684100757,0.02328724,68486.0,68473.0,0.00011703]
[1771684100758,0.02328724,68484.0,68473.0,0.00011703]
[1771684100901,0.29198913,68496.0,68480.0,0.00016]
[1771684101105,0.09629448,68487.0,68480.0,0.00016]
[1771684101312,0.02328724,68487.0,68480.0,0.00016]
[1771684101746,0.09629393,68487.0,68480.0,0.00016]
[1771684101925,0.09629393,68487.0,68477.0,0.07301697]
[1771684102128,0.096294,68487.0,68478.0,0.07301608]
[1771684102345,0.07301469,68480.0,68473.0,0.00011703]
[1771684102562,0.02328724,68481.0,68473.0,0.00011703]
[1771684102760,0.02328724,68481.0,68475.0,0.0730192]
[1771684103213,0.07301166,68483.0,68474.0,0.07302011]
[1771684104598,0.02328724,68485.0,68478.0,0.07301528]
[1771684105218,0.02328724,68485.0,68473.0,0.00011703]
[1771684105421,0.02328724,68485.0,68477.0,0.07301644]
[1771684105784,0.07300759,68488.0,68479.0,0.07301507]
[1771684105986,0.07300679,68487.0,68479.0,0.07301507]
[1771684106324,0.09629256,68489.0,68480.0,0.07301313]
[1771684106474,0.09629256,68489.0,68480.0,0.07301401]
[1771684107068,0.72127552,68516.0,68494.0,0.07299845]
[1771684107069,0.38493103,68509.0,68494.0,0.07299845]
[1771684107215,0.07298936,68504.0,68495.0,0.07299755]
[1771684107440,0.07298964,68503.0,68495.0,0.07299755]
[1771684108238,0.07298964,68503.0,68493.0,0.07299913]
[1771684108419,0.07298964,68503.0,68494.0,0.07299841]
[1771684108626,0.07298848,68504.0,68494.0,0.07299841]
[1771684108842,0.07298944,68504.0,68495.0,0.09682419]
[1771684109061,0.07298963,68503.0,68495.0,0.09682419]
[1771684109260,0.07298963,68503.0,68495.0,0.0968242]
[1771684109568,0.00016,68510.0,68501.0,0.07299059]
[1771684109708,0.00027701,68510.0,68498.0,0.02382628]
[1771684109958,0.07325926,68510.0,68501.0,0.07299072]
[1771684110164,0.0732592,68510.0,68501.0,0.07299072]
[1771684110518,0.0732592,68510.0,68498.0,0.02382628]
[1771684110519,0.00027701,68510.0,68498.0,0.02382628]
[1771684110723,0.00036,68520.0,68503.0,0.02382628]
[1771684110865,0.00036,68520.0,68512.0,0.07297975]
[1771684111066,0.00036,68520.0,68511.0,0.02382628]
[1771684111417,0.07297251,68519.0,68511.0,0.09680692]
[1771684111656,0.07297285,68519.0,68511.0,0.09680692]
[1771684112046,0.07297708,68515.0,68504.0,0.02382628]
[1771684112172,0.07297708,68515.0,68507.0,0.07298486]
[1771684112374,0.07297578,68516.0,68507.0,0.07298486]
[1771684112574,0.02364724,68520.0,68510.0,0.07269451]
[1771684112773,0.07297255,68519.0,68510.0,0.07255077]
[1771684113029,0.14537335,68519.0,68511.0,0.07298068]
[1771684113534,0.14537335,68519.0,68508.0,0.02382628]
[1771684113535,0.07297355,68518.0,68509.0,0.07298303]
[1771684113685,0.14537335,68519.0,68510.0,0.0729819]
[1771684113686,0.21834611,68519.0,68510.0,0.0729819]
[1771684114526,0.14537335,68519.0,68512.0,0.02382628]
[1771684114726,0.07297326,68519.0,68512.0,0.02382628]
[1771684114938,0.07297355,68518.0,68512.0,0.02382628]
[1771684115238,0.07297325,68519.0,68512.0,0.02382628]
[1771684115454,0.00036,68520.0,68512.0,0.02382628]
[1771684115641,0.07333224,68520.0,68512.0,0.02382628]
[1771684115845,0.00036,68520.0,68512.0,0.02382628]
[1771684116307,0.07297254,68519.0,68512.0,0.02382628]
[1771684116510,0.0733315,68520.0,68512.0,0.02382628]
[1771684116713,0.00036,68520.0,68513.0,0.07297799]
[1771684116928,0.00036,68520.0,68512.0,0.09680541]
[1771684117180,0.00036,68520.0,68513.0,0.07297855]
[1771684117411,0.00036,68520.0,68512.0,0.09680513]
[1771684117579,0.00036,68520.0,68514.0,0.07297712]
[1771684118001,0.0003901,68521.0,68515.0,0.07297651]
[1771684118201,0.0003901,68521.0,68510.0,0.29192634]
[1771684118202,0.00016,68540.0,68510.0,0.00016]
[1771684118203,0.37450941,68530.0,68510.0,0.00016]
[1771684118403,0.37434941,68528.0,68510.0,0.00016]
[1771684118602,0.44731127,68529.0,68520.0,0.07268393]
[1771684119393,0.07296291,68528.0,68520.0,0.07268393]
[1771684120197,0.02388152,68528.0,68510.0,0.00016]
[1771684120398,0.02388152,68528.0,68490.0,0.58418372]
[1771684120399,0.02388152,68528.0,68500.0,0.02298741]
[1771684120400,0.07297989,68513.0,68500.0,0.02298741]
[1771684120597,0.18471711,68520.0,68504.0,0.02282741]
[1771684120598,0.07297303,68519.0,68504.0,0.02282741]
[1771684120814,0.07297543,68517.0,68509.0,0.02282741]
[1771684120962,0.07297509,68517.0,68509.0,0.02282741]
[1771684121164,0.07297376,68518.0,68509.0,0.09581033]
[1771684121489,0.07297579,68516.0,68509.0,0.02282741]
[1771684123247,0.00016,68520.0,68509.0,0.02282741]
[1771684123448,0.07297246,68519.0,68510.0,0.07298204]
[1771684123799,0.07297246,68519.0,68508.0,0.0729833]
[1771684123800,0.02388152,68517.0,68508.0,0.0729833]
[1771684124003,0.02388152,68517.0,68505.0,0.2919472]
[1771684124004,0.37434941,68516.0,68509.0,0.07298311]
[1771684124245,0.37434941,68516.0,68505.0,0.2919472]
[1771684124246,0.39823093,68516.0,68505.0,0.2919472]
[1771684124403,0.39823093,68516.0,68509.0,0.07298235]
[1771684124596,0.39823093,68516.0,68510.0,0.07298165]
[1771684124973,0.37434941,68514.0,68510.0,0.07298165]
[1771684125158,0.39823093,68513.0,68509.0,0.07298256]
[1771684125578,0.07313155,68520.0,68511.0,0.07269308]
[1771684125769,0.37434941,68517.0,68511.0,0.06678226]
[1771684125980,0.02388152,68516.0,68503.0,0.00011701]
[1771684126202,0.02388152,68513.0,68503.0,0.00011701]
[1771684126430,0.02388152,68513.0,68503.0,0.07310544]
[1771684126625,0.02388152,68512.0,68509.0,0.07298293]
[1771684127070,0.02388152,68512.0,68509.0,0.07320293]
[1771684129770,0.02388152,68512.0,68509.0,0.22327193]
[1771684132585,0.02388152,68516.0,68509.0,0.22327193]
[1771684132790,0.02388152,68516.0,68509.0,0.09983621]
[1771684133220,0.02388152,68516.0,68509.0,0.17281918]
[1771684133425,0.02388152,68516.0,68511.0,0.07298002]
[1771684133780,0.02388152,68516.0,68511.0,0.02913965]
[1771684134216,0.02388152,68516.0,68512.0,0.07297935]
[1771684134754,0.02388152,68516.0,68511.0,0.02913965]
[1771684134953,0.02388152,68516.0,68509.0,0.1583382]
[1771684135298,0.61132677,68520.0,68509.0,0.08535548]
[1771684135299,0.00016,68520.0,68509.0,0.08535548]
[1771684135509,0.1640057,68520.0,68515.0,0.0729758]
[1771684135749,0.02404152,68520.0,68515.0,0.0729758]
[1771684135948,0.02404152,68520.0,68515.0,0.02913542]
[1771684136328,0.02404152,68520.0,68514.0,0.0729758]
[1771684136529,0.02404152,68520.0,68509.0,0.08535548]
[1771684136530,0.00016,68520.0,68509.0,0.08535548]
[1771684136732,0.00016,68520.0,68500.0,0.00016]
[1771684136733,0.37434941,68510.0,68505.0,0.0729866]
[1771684137077,0.00011695,68510.0,68500.0,0.00016]
[1771684137446,0.00011695,68510.0,68506.0,0.07298544]
[1771684137818,0.00011695,68510.0,68506.0,0.02914506]
[1771684138926,0.00011695,68510.0,68504.0,0.07295429]
[1771684139363,0.00011695,68510.0,68502.0,0.29218056]
[1771684139565,0.00011695,68510.0,68506.0,0.07298548]
[1771684139768,0.00011695,68510.0,68504.0,0.07298747]
[1771684139968,0.00011695,68510.0,68507.0,0.02914472]
[1771684141375,0.00011695,68510.0,68506.0,0.05850853]
[1771684142554,0.00011695,68510.0,68506.0,0.00022]
[1771684142740,0.00011695,68510.0,68502.0,0.00022]
[1771684143178,0.00011695,68510.0,68503.0,0.0729887]
[1771684143385,0.00011695,68510.0,68504.0,0.07298843]
[1771684144181,0.00011695,68510.0,68505.0,0.07298719]
[1771684144521,0.00011695,68510.0,68505.0,0.02914681]
[1771684144849,0.00011695,68510.0,68505.0,0.02359351]
[1771684145076,0.00011695,68510.0,68506.0,0.07298571]
[1771684145739,0.00011695,68510.0,68505.0,0.07298731]
[1771684147378,0.00011695,68510.0,68506.0,0.07298599]
[1771684147627,0.00011695,68510.0,68506.0,0.07298537]
[1771684148654,0.00011695,68510.0,68505.0,0.07298699]
[1771684149455,0.00011695,68510.0,68506.0,0.07298627]
[1771684151441,0.00011695,68510.0,68505.0,0.02458785]
[1771684151663,0.00011695,68510.0,68506.0,0.07298554]
[1771684151982,0.00011695,68510.0,68506.0,0.09735339]
[1771684152355,0.00011695,68510.0,68507.0,0.07298448]
[1771684152898,0.00011695,68510.0,68506.0,0.09735339]
[1771684153601,0.07298311,68509.0,68502.0,0.00022]
[1771684153961,0.07298324,68509.0,68502.0,0.00022]
[1771684154431,0.07298324,68509.0,68501.0,0.06738908]
[1771684158080,0.07298324,68509.0,68501.0,0.06008166]
[1771684158622,0.07298324,68509.0,68501.0,0.06030166]
[1771684159014,0.07298324,68509.0,68502.0,0.05314333]
[1771684160389,0.07298324,68509.0,68502.0,0.03852868]
[1771684161467,0.07298318,68509.0,68501.0,0.07321134]
[1771684161867,0.00031695,68510.0,68501.0,0.00022]
[1771684162192,0.00031695,68510.0,68501.0,0.02458785]
[1771684163526,0.00031695,68510.0,68503.0,0.07290859]
[1771684164031,0.00031695,68510.0,68504.0,0.0337992]
[1771684165380,0.00031695,68510.0,68503.0,0.06286442]
[1771684165615,0.00031695,68510.0,68504.0,0.0729877]
[1771684165875,0.00031695,68510.0,68501.0,0.09757893]
[1771684166046,0.07329939,68510.0,68504.0,0.0150069]
[1771684166458,0.00031695,68510.0,68504.0,0.00840427]
[1771684166811,0.00031695,68510.0,68505.0,0.09735496]
[1771684167436,0.00031695,68510.0,68505.0,0.02436785]
[1771684168032,0.00031695,68510.0,68505.0,0.0097532]
[1771684168278,0.00031695,68510.0,68504.0,0.06782314]
[1771684169573,0.00031695,68510.0,68504.0,0.05320849]
[1771684170516,0.00031695,68510.0,68504.0,0.03859384]
[1771684171450,0.00031695,68510.0,68503.0,0.07320933]
[1771684171651,0.00031695,68510.0,68504.0,0.05837329]
[1771684173043,0.00031695,68510.0,68504.0,0.04696378]
[1771684173395,0.00031695,68510.0,68500.0,0.07315163]
[1771684173598,0.00031695,68510.0,68490.0,0.02291636]
[1771684173599,0.00031695,68510.0,68490.0,0.00016]
[1771684173600,0.07299195,68501.0,68490.0,0.00016]
[1771684173768,0.0231827,68502.0,68490.0,0.00016]
[1771684173769,0.07298859,68504.0,68493.0,0.07299805]
[1771684173972,0.07298961,68503.0,68495.0,0.0729972]
[1771684174976,0.02323331,68510.0,68499.0,0.07299357]
[1771684175173,0.07298505,68508.0,68499.0,0.09736142]
[1771684175359,0.14603286,68508.0,68499.0,0.09736142]
[1771684175564,0.07298417,68508.0,68499.0,0.09736142]
[1771684175794,0.21900353,68508.0,68499.0,0.09736142]
[1771684175996,0.07298566,68507.0,68499.0,0.09736142]
[1771684176204,0.07298566,68507.0,68499.0,0.09758142]
[1771684177355,0.0002,68509.0,68499.0,0.02458785]
[1771684177528,0.07298583,68507.0,68499.0,0.00022]
[1771684177751,0.0002,68509.0,68502.0,0.0729897]
[1771684177955,0.14620053,68509.0,68502.0,0.0729897]
[1771684178726,0.21918368,68509.0,68502.0,0.0729897]
[1771684178947,0.07318315,68509.0,68499.0,0.07321164]
[1771684179310,0.07318315,68509.0,68500.0,0.0729927]
[1771684179475,0.07318315,68509.0,68501.0,0.07299101]
[1771684181269,0.0002,68509.0,68502.0,0.07299052]
[1771684181470,0.0002,68509.0,68501.0,0.07299125]
[1771684182051,0.0731833,68509.0,68502.0,0.07299051]
[1771684182266,0.0002,68509.0,68502.0,0.07299051]
[1771684182469,0.0002,68509.0,68501.0,0.07299136]
[1771684182690,0.0002,68509.0,68502.0,0.07298963]
[1771684182870,0.07318338,68509.0,68501.0,0.09798403]
[1771684183479,0.14600439,68508.0,68502.0,0.0002]
[1771684186227,0.21898925,68508.0,68502.0,0.0002]
[1771684186430,0.07298543,68507.0,68502.0,0.0002]
[1771684186782,0.21899092,68508.0,68502.0,0.0002]
[1771684187405,0.14600668,68508.0,68502.0,0.0002]
[1771684190749,0.14620668,68508.0,68502.0,0.0002]
[1771684190904,0.21919099,68508.0,68502.0,0.0002]
[1771684191102,0.21919099,68508.0,68499.0,0.00022]
[1771684191103,0.07298524,68507.0,68499.0,0.00022]
[1771684191305,0.02416947,68507.0,68495.0,0.07299725]
[1771684191522,0.09574455,68505.0,68496.0,0.07299677]
[1771684192296,0.07298928,68504.0,68496.0,0.07299677]
[1771684193241,0.07298819,68505.0,68496.0,0.07299677]
[1771684193490,0.07298849,68504.0,68496.0,0.07299677]
[1771684195360,0.07298964,68503.0,68495.0,0.07299779]
[1771684195562,0.07299059,68502.0,68494.0,0.07321878]
[1771684195802,0.07298953,68503.0,68494.0,0.07321878]
[1771684196131,0.07298953,68503.0,68495.0,0.07299732]
[1771684196654,0.07299369,68500.0,68494.0,0.00022]
[1771684196900,0.31471437,68504.0,68492.0,0.00022]
[1771684197248,0.31471437,68504.0,68489.0,0.07322414]
[1771684197249,0.07299484,68498.0,68489.0,0.07322414]
[1771684197431,0.09716431,68498.0,68489.0,0.00022]
[1771684197732,0.07299665,68497.0,68489.0,0.00022]
[1771684198281,0.07299665,68497.0,68489.0,0.07322369]
[1771684198522,0.02291636,68500.0,68489.0,0.00022]
[1771684198523,0.00016,68500.0,68489.0,0.00022]
[1771684198732,0.00016,68500.0,68496.0,0.0729966]
[1771684198935,0.00016,68500.0,68495.0,0.07299768]
[1771684199547,0.29212187,68512.0,68490.0,0.00016]
[1771684199548,0.07318432,68508.0,68490.0,0.00016]
[1771684199732,0.07298543,68507.0,68498.0,0.07299388]
[1771684200076,0.07298543,68507.0,68498.0,0.07299276]
[1771684200077,0.0729855,68507.0,68498.0,0.07299276]
[1771684200262,0.0729855,68507.0,68499.0,0.07299376]
[1771684200681,0.29213702,68508.0,68490.0,0.07316229]
[1771684200830,0.29213702,68508.0,68494.0,0.09799074]
[1771684200831,0.09735393,68508.0,68494.0,0.09799074]
[1771684201038,0.09735393,68508.0,68503.0,0.07298863]
[1771684201039,0.0002,68508.0,68503.0,0.07298863]
[1771684201239,0.0002,68508.0,68500.0,0.07299067]
[1771684201448,0.07318436,68508.0,68499.0,0.07299376]
[1771684201648,0.07318423,68508.0,68499.0,0.07299296]
[1771684201963,0.07318423,68508.0,68493.0,0.37182635]
[1771684201964,0.07318423,68508.0,68482.0,0.17536]
[1771684201965,0.07318423,68508.0,68480.0,0.00038]
[1771684201966,0.29200378,68493.0,68480.0,0.00038]
[1771684202165,0.02275636,68490.0,68482.0,0.07301094]
[1771684202364,0.02275636,68490.0,68481.0,0.07301264]
[1771684202365,0.09575991,68490.0,68481.0,0.07301264]
[1771684202744,0.02275636,68490.0,68481.0,0.07077264]
[1771684202960,0.02275636,68490.0,68482.0,0.07301128]
[1771684203709,0.02275636,68490.0,68484.0,0.00022]
[1771684203862,0.02275636,68490.0,68480.0,0.00038]
[1771684203863,0.07300547,68489.0,68480.0,0.00038]
[1771684204061,0.07300658,68487.0,68480.0,0.00038]
[1771684204508,0.07300574,68488.0,68480.0,0.07339369]
[1771684205209,9.67e-05,68488.0,68480.0,0.07339369]
[1771684205555,0.07310219,68488.0,68480.0,0.07339369]